[Event "*** Titled Tuesday Blitz"]
[Site "Chess.com"]
[Date "2018.08.07"]
[Round "9"]
[White "MITerryble"]
[Black "Alexander_Moskalenko"]
[Result "0-1"]
[WhiteElo "2765"]
[BlackElo "2850"]
[TimeControl "180+2"]
[EndTime "15:07:06 PDT"]
[Termination "Alexander_Moskalenko won by resignation"]

1. d4 {[%clk 0:03:01.9]} 1... d5 {[%clk 0:03:00.7]} 2. Nf3 {[%clk 0:03:00.9]}
2... e6 {[%clk 0:03:02.2]} 3. c4 {[%clk 0:03:01.8]} 3... Nf6 {[%clk 0:03:04.1]}
4. e3 {[%clk 0:03:02.9]} 4... c5 {[%clk 0:03:03.5]} 5. dxc5 {[%clk 0:03:03.5]}
5... Bxc5 {[%clk 0:03:02.7]} 6. a3 {[%clk 0:03:04.7]} 6... a6 {[%clk 0:03:01.9]}
7. b4 {[%clk 0:03:05.7]} 7... Ba7 {[%clk 0:03:03.4]} 8. Bb2 {[%clk 0:03:06.9]}
8... O-O {[%clk 0:03:04.9]} 9. Nbd2 {[%clk 0:03:07.9]} 9... Nc6 {[%clk
0:03:05.2]} 10. Be2 {[%clk 0:03:09]} 10... d4 {[%clk 0:02:54.4]} 11. exd4 {[%clk
0:03:09.7]} 11... Nxd4 {[%clk 0:02:56.3]} 12. c5 {[%clk 0:03:09.7]} 12... Nxf3+
{[%clk 0:02:53.1]} 13. Nxf3 {[%clk 0:03:09.5]} 13... Bd7 {[%clk 0:02:45]} 14.
Ne5 {[%clk 0:03:05.3]} 14... Bb5 {[%clk 0:01:58.5]} 15. Bxb5 {[%clk 0:02:59.7]}
15... axb5 {[%clk 0:02:00.4]} 16. Qe2 {[%clk 0:02:58]} 16... Qe8 {[%clk
0:01:46.8]} 17. O-O {[%clk 0:02:57.4]} 17... Nd5 {[%clk 0:01:47.3]} 18. Nf3
{[%clk 0:02:54.8]} 18... Bb8 {[%clk 0:01:47.5]} 19. Nd4 {[%clk 0:02:54.3]} 19...
Nf4 {[%clk 0:01:04.5]} 20. Qxb5 {[%clk 0:02:42.3]} 20... Be5 {[%clk 0:01:04.9]}
21. Qc4 {[%clk 0:02:27.5]} 21... Bxd4 {[%clk 0:01:05.4]} 22. Bxd4 {[%clk
0:02:25.5]} 22... Qc6 {[%clk 0:01:06.8]} 23. f3 {[%clk 0:02:25.5]} 23... b5
{[%clk 0:01:04]} 24. Qc2 {[%clk 0:02:21.2]} 24... f6 {[%clk 0:01:05.6]} 25. Rfd1
{[%clk 0:02:04.3]} 25... Rfd8 {[%clk 0:01:07]} 26. Bb2 {[%clk 0:01:59.2]} 26...
e5 {[%clk 0:01:03.7]} 27. Rxd8+ {[%clk 0:01:29.1]} 27... Rxd8 {[%clk 0:01:05.6]}
28. Rd1 {[%clk 0:01:30.1]} 28... Rd5 {[%clk 0:01:01.4]} 29. Qb3 {[%clk
0:01:24.5]} 29... Kf8 {[%clk 0:00:56.9]} 30. Rxd5 {[%clk 0:01:24.4]} 30... Nxd5
{[%clk 0:00:56.6]} 31. Bc1 {[%clk 0:01:23.4]} 31... Nc7 {[%clk 0:00:56.2]} 32.
Qd3 {[%clk 0:01:16]} 32... Qd5 {[%clk 0:00:50.9]} 33. Qxd5 {[%clk 0:01:11.7]}
33... Nxd5 {[%clk 0:00:52.8]} 34. Kf2 {[%clk 0:01:11.2]} 34... Ke7 {[%clk
0:00:54.4]} 35. Ke2 {[%clk 0:01:12.2]} 35... Ke6 {[%clk 0:00:56]} 36. Kd3 {[%clk
0:01:13.1]} 36... h5 {[%clk 0:00:51.8]} 37. h4 {[%clk 0:01:08.9]} 37... g6
{[%clk 0:00:47.7]} 38. Bd2 {[%clk 0:01:09.1]} 38... f5 {[%clk 0:00:47.8]} 39.
Bc1 {[%clk 0:00:52.2]} 39... Kd7 {[%clk 0:00:47.1]} 40. a4 {[%clk 0:00:38.8]}
40... Nxb4+ {[%clk 0:00:44.2]} 41. Kc3 {[%clk 0:00:33.3]} 41... Na2+ {[%clk
0:00:45.2]} 42. Kc2 {[%clk 0:00:22.5]} 42... Nxc1 {[%clk 0:00:47]} 43. axb5
{[%clk 0:00:23.1]} 43... Ne2 {[%clk 0:00:47.5]} 44. Kd3 {[%clk 0:00:22]} 44...
Nf4+ {[%clk 0:00:48.6]} 45. Kc4 {[%clk 0:00:23]} 45... e4 {[%clk 0:00:38.7]} 46.
fxe4 {[%clk 0:00:23.2]} 46... fxe4 {[%clk 0:00:40.6]} 47. Kd4 {[%clk 0:00:24.7]}
47... Nxg2 {[%clk 0:00:38.9]} 48. Kxe4 {[%clk 0:00:24.7]} 48... Nxh4 {[%clk
0:00:40.4]} 49. Kd5 {[%clk 0:00:26.6]} 49... Nf5 {[%clk 0:00:41.4]} 50. c6+
{[%clk 0:00:28.5]} 50... Kc8 {[%clk 0:00:37.3]} 51. Kc5 {[%clk 0:00:30.4]} 51...
Ne7 {[%clk 0:00:38]} 52. b6 {[%clk 0:00:32.3]} 52... Nxc6 {[%clk 0:00:39]} 53.
Kxc6 {[%clk 0:00:34.2]} 53... h4 {[%clk 0:00:39]} 0-1

[Event "*** Titled Tuesday Blitz"]
[Site "Chess.com"]
[Date "2018.08.07"]
[Round "9"]
[White "Abrito99"]
[Black "TijanaBlagojevic"]
[Result "1-0"]
[WhiteElo "2504"]
[BlackElo "2371"]
[TimeControl "180+2"]
[EndTime "15:07:13 PDT"]
[Termination "Abrito99 won by resignation"]

1. e4 {[%clk 0:03:01.9]} 1... c5 {[%clk 0:02:59.4]} 2. Nf3 {[%clk 0:03:01.8]}
2... b6 {[%clk 0:03:00.2]} 3. d4 {[%clk 0:02:55.9]} 3... cxd4 {[%clk 0:02:57]}
4. Nxd4 {[%clk 0:02:57.8]} 4... Bb7 {[%clk 0:02:58.1]} 5. Nc3 {[%clk 0:02:53.9]}
5... g6 {[%clk 0:02:58.7]} 6. Bc4 {[%clk 0:02:53.6]} 6... Bg7 {[%clk 0:02:58.8]}
7. O-O {[%clk 0:02:55.1]} 7... Nc6 {[%clk 0:02:59.6]} 8. Be3 {[%clk 0:02:50.6]}
8... Nf6 {[%clk 0:02:58.6]} 9. Nxc6 {[%clk 0:02:51.1]} 9... dxc6 {[%clk
0:02:59.7]} 10. Qe2 {[%clk 0:02:50.1]} 10... e5 {[%clk 0:03:00.6]} 11. Rad1
{[%clk 0:02:50.3]} 11... Qe7 {[%clk 0:03:01.7]} 12. f4 {[%clk 0:02:14.9]} 12...
O-O {[%clk 0:02:38.4]} 13. fxe5 {[%clk 0:02:00.1]} 13... Nd7 {[%clk 0:02:37.9]}
14. Bg5 {[%clk 0:01:50.2]} 14... Qc5+ {[%clk 0:02:32.9]} 15. Be3 {[%clk
0:01:51.3]} 15... Qe7 {[%clk 0:02:31.9]} 16. e6 {[%clk 0:01:43.8]} 16... fxe6
{[%clk 0:02:30.4]} 17. Qg4 {[%clk 0:01:43.9]} 17... Nc5 {[%clk 0:02:13]} 18. b4
{[%clk 0:01:35]} 18... Ba6 {[%clk 0:01:57.5]} 19. Bg5 {[%clk 0:00:48]} 19... Qe8
{[%clk 0:01:48.6]} 20. Rxf8+ {[%clk 0:00:46.9]} 20... Bxf8 {[%clk 0:01:43.3]}
21. e5 {[%clk 0:00:32.8]} 21... Bxc4 {[%clk 0:01:24.8]} 22. Qxc4 {[%clk
0:00:34.7]} 22... Nd7 {[%clk 0:01:23.4]} 23. Qd4 {[%clk 0:00:31.5]} 23... h6
{[%clk 0:01:07.7]} 24. Bc1 {[%clk 0:00:19.4]} 24... Rd8 {[%clk 0:01:05.8]} 25.
Ne4 {[%clk 0:00:20.9]} 25... Be7 {[%clk 0:01:05.7]} 26. Qb2 {[%clk 0:00:09.3]}
26... Nxe5 {[%clk 0:00:59.5]} 27. Rxd8 {[%clk 0:00:09.8]} 27... Qxd8 {[%clk
0:01:01]} 28. Qxe5 {[%clk 0:00:09.2]} 28... Qd1+ {[%clk 0:01:02]} 29. Kf2 {[%clk
0:00:10.7]} 29... Qxc1 {[%clk 0:00:58.4]} 30. Qxe6+ {[%clk 0:00:12.1]} 30... Kf8
{[%clk 0:00:58.6]} 31. Qc8+ {[%clk 0:00:11.2]} 31... Kf7 {[%clk 0:00:59.7]} 32.
Qxc6 {[%clk 0:00:12.7]} 32... Qf4+ {[%clk 0:00:58.2]} 33. Ke2 {[%clk 0:00:12]}
33... Qg4+ {[%clk 0:00:58.6]} 34. Kf2 {[%clk 0:00:11.6]} 34... Qf4+ {[%clk
0:00:59.6]} 35. Ke2 {[%clk 0:00:12.7]} 35... Qxh2 {[%clk 0:00:59.1]} 36. Qd5+
{[%clk 0:00:12.1]} 36... Kg7 {[%clk 0:00:59]} 37. Qd4+ {[%clk 0:00:12.6]} 37...
Kf7 {[%clk 0:00:59.7]} 38. Qd5+ {[%clk 0:00:13.5]} 38... Ke8 {[%clk 0:01:00.5]}
39. Qg8+ {[%clk 0:00:13.7]} 39... Kd7 {[%clk 0:01:00.6]} 40. Qxg6 {[%clk
0:00:15.1]} 40... Qe5 {[%clk 0:00:56]} 41. Qg4+ {[%clk 0:00:16]} 41... Kc6
{[%clk 0:00:57.1]} 42. c3 {[%clk 0:00:16.2]} 42... Bg5 {[%clk 0:00:54.7]} 43.
Qc8+ {[%clk 0:00:16]} 43... Kb5 {[%clk 0:00:55.8]} 44. Qd7+ {[%clk 0:00:12.5]}
44... Ka6 {[%clk 0:00:56.4]} 45. Kd3 {[%clk 0:00:09.5]} 45... Bf4 {[%clk
0:00:47.3]} 46. a4 {[%clk 0:00:08.3]} 46... Qc7 {[%clk 0:00:44.4]} 47. Qd5
{[%clk 0:00:06.6]} 47... Be5 {[%clk 0:00:41.3]} 48. c4 {[%clk 0:00:06]} 48...
Bf4 {[%clk 0:00:40.3]} 49. c5 {[%clk 0:00:07.2]} 49... bxc5 {[%clk 0:00:40.3]}
50. Nxc5+ {[%clk 0:00:08.1]} 50... Kb6 {[%clk 0:00:41.6]} 51. a5+ {[%clk
0:00:08.5]} 51... Kb5 {[%clk 0:00:40.8]} 52. Ne6+ {[%clk 0:00:09.7]} 52... Kxb4
{[%clk 0:00:39]} 53. Nxc7 {[%clk 0:00:11.1]} 53... Bxc7 {[%clk 0:00:40.9]} 54.
Qc4+ {[%clk 0:00:10.5]} 1-0

[Event "*** Titled Tuesday Blitz"]
[Site "Chess.com"]
[Date "2018.08.07"]
[Round "9"]
[White "GMG"]
[Black "Mr_Penings"]
[Result "1/2-1/2"]
[WhiteElo "2730"]
[BlackElo "2521"]
[TimeControl "180+2"]
[EndTime "15:07:15 PDT"]
[Termination "Game drawn by agreement"]

1. d4 {[%clk 0:03:01]} 1... Nf6 {[%clk 0:03:00.1]} 2. Bf4 {[%clk 0:03:01]} 2...
d6 {[%clk 0:02:59.2]} 3. Nc3 {[%clk 0:03:01.3]} 3... Nbd7 {[%clk 0:02:58.6]} 4.
Nf3 {[%clk 0:03:01.2]} 4... g6 {[%clk 0:02:46.4]} 5. e4 {[%clk 0:02:53.4]} 5...
Bg7 {[%clk 0:02:46.5]} 6. Qd2 {[%clk 0:02:54.6]} 6... O-O {[%clk 0:02:42.1]} 7.
Bh6 {[%clk 0:02:51.4]} 7... c5 {[%clk 0:02:38.7]} 8. Bxg7 {[%clk 0:02:48]} 8...
Kxg7 {[%clk 0:02:39.4]} 9. O-O-O {[%clk 0:02:47.7]} 9... cxd4 {[%clk 0:02:37.5]}
10. Nxd4 {[%clk 0:02:49.6]} 10... Nc5 {[%clk 0:02:26.8]} 11. Qe3 {[%clk
0:02:42.6]} 11... Be6 {[%clk 0:01:49.9]} 12. Be2 {[%clk 0:02:32.9]} 12... Qa5
{[%clk 0:01:41.4]} 13. Nxe6+ {[%clk 0:02:31.5]} 13... Nxe6 {[%clk 0:01:32.9]}
14. Kb1 {[%clk 0:02:27.2]} 14... Rfc8 {[%clk 0:01:26.8]} 15. Nd5 {[%clk
0:02:23.4]} 15... Qc5 {[%clk 0:00:43.8]} 16. Qxc5 {[%clk 0:02:11.2]} 16... Rxc5
{[%clk 0:00:45.7]} 17. Nxf6 {[%clk 0:01:54.8]} 17... Kxf6 {[%clk 0:00:45.1]} 18.
g3 {[%clk 0:01:54.8]} 18... Rac8 {[%clk 0:00:37.4]} 19. Bd3 {[%clk 0:01:49.1]}
19... g5 {[%clk 0:00:37.5]} 20. h4 {[%clk 0:01:49.7]} 20... g4 {[%clk 0:00:38]}
21. c3 {[%clk 0:01:48.6]} 21... h5 {[%clk 0:00:38]} 22. Bc2 {[%clk 0:01:48.7]}
22... Ke5 {[%clk 0:00:35.4]} 23. Rhe1 {[%clk 0:01:48.1]} 23... b5 {[%clk
0:00:34.5]} 24. Bb3 {[%clk 0:01:45.7]} 24... a5 {[%clk 0:00:34]} 25. Rd5+ {[%clk
0:01:46.1]} 25... Kf6 {[%clk 0:00:35.5]} 26. Red1 {[%clk 0:01:41.6]} 26... a4
{[%clk 0:00:35.9]} 27. Bc2 {[%clk 0:01:42]} 27... a3 {[%clk 0:00:29.3]} 28. Rf5+
{[%clk 0:01:06.7]} 28... Rxf5 {[%clk 0:00:25.3]} 29. exf5 {[%clk 0:01:08.6]}
29... Ng7 {[%clk 0:00:26.2]} 30. Rd5 {[%clk 0:01:06.6]} 30... axb2 {[%clk
0:00:17.3]} 31. Kxb2 {[%clk 0:01:04.4]} 31... Rc5 {[%clk 0:00:18.3]} 32. c4
{[%clk 0:00:37.2]} 32... Rxd5 {[%clk 0:00:15.5]} 33. cxd5 {[%clk 0:00:39.1]}
33... Nxf5 {[%clk 0:00:16.6]} 34. Kc3 {[%clk 0:00:40.1]} 34... Ke5 {[%clk
0:00:07.8]} 35. Bxf5 {[%clk 0:00:40.2]} 35... Kxf5 {[%clk 0:00:09.7]} 36. Kb4
{[%clk 0:00:41.8]} 36... Ke4 {[%clk 0:00:11]} 37. Kxb5 {[%clk 0:00:43.4]} 37...
Kf3 {[%clk 0:00:12.6]} 38. a4 {[%clk 0:00:45]} 38... Kxf2 {[%clk 0:00:14.2]} 39.
a5 {[%clk 0:00:46.9]} 39... Kxg3 {[%clk 0:00:15.7]} 40. a6 {[%clk 0:00:48.5]}
40... Kh2 {[%clk 0:00:16.4]} 41. a7 {[%clk 0:00:50.2]} 41... g3 {[%clk 0:00:18]}
42. a8=Q {[%clk 0:00:50.9]} 42... g2 {[%clk 0:00:19.5]} 43. Qa2 {[%clk 0:00:35]}
43... Kh1 {[%clk 0:00:19.7]} 44. Qf2 {[%clk 0:00:31.2]} 44... g1=Q {[%clk
0:00:20.3]} 45. Qxf7 {[%clk 0:00:32.1]} 45... Qc5+ {[%clk 0:00:19]} 46. Ka6
{[%clk 0:00:32.8]} 46... Qc4+ {[%clk 0:00:19.9]} 47. Kb7 {[%clk 0:00:32.2]}
47... Qxh4 {[%clk 0:00:21.8]} 48. Qf1+ {[%clk 0:00:28.3]} 48... Kh2 {[%clk
0:00:22.3]} 49. Qe2+ {[%clk 0:00:29.6]} 49... Kh3 {[%clk 0:00:22.8]} 50. Qf3+
{[%clk 0:00:30.3]} 50... Kh2 {[%clk 0:00:21.7]} 51. Qe2+ {[%clk 0:00:31.2]}
51... Kh3 {[%clk 0:00:23]} 52. Qf3+ {[%clk 0:00:32.3]} 52... Kh2 {[%clk
0:00:24.4]} 53. Qe2+ {[%clk 0:00:28.9]} 53... Kg1 {[%clk 0:00:25.9]} 54. Qe3+
{[%clk 0:00:26.5]} 54... Kg2 {[%clk 0:00:26.1]} 55. Qe2+ {[%clk 0:00:26.9]}
55... Kg3 {[%clk 0:00:26.3]} 56. Qe1+ {[%clk 0:00:26.4]} 56... Kg4 {[%clk
0:00:26.1]} 57. Qe4+ {[%clk 0:00:27.5]} 57... Kg3 {[%clk 0:00:23.4]} 58. Qe1+
{[%clk 0:00:28.1]} 58... Kh3 {[%clk 0:00:21.7]} 59. Qh1+ {[%clk 0:00:28.5]}
59... Kg4 {[%clk 0:00:21.9]} 60. Qe4+ {[%clk 0:00:29.6]} 1/2-1/2

[Event "*** Titled Tuesday Blitz"]
[Site "Chess.com"]
[Date "2018.08.07"]
[Round "9"]
[White "djano"]
[Black "Egorov_Pavel"]
[Result "0-1"]
[WhiteElo "2375"]
[BlackElo "2331"]
[TimeControl "180+2"]
[EndTime "15:07:36 PDT"]
[Termination "Egorov_Pavel won by resignation"]

1. c4 {[%clk 0:03:01.9]} 1... Nf6 {[%clk 0:02:49.2]} 2. g3 {[%clk 0:03:01.5]}
2... g6 {[%clk 0:02:50.6]} 3. Bg2 {[%clk 0:03:02.2]} 3... Bg7 {[%clk 0:02:51.6]}
4. e4 {[%clk 0:03:02.3]} 4... d6 {[%clk 0:02:50.6]} 5. Ne2 {[%clk 0:03:02.5]}
5... O-O {[%clk 0:02:52.1]} 6. Nbc3 {[%clk 0:03:03.8]} 6... e5 {[%clk
0:02:53.5]} 7. O-O {[%clk 0:03:04.8]} 7... Nc6 {[%clk 0:02:55.2]} 8. Rb1 {[%clk
0:03:01.7]} 8... a5 {[%clk 0:02:55.2]} 9. a3 {[%clk 0:03:03]} 9... Nd4 {[%clk
0:02:51.1]} 10. b4 {[%clk 0:03:02.3]} 10... axb4 {[%clk 0:02:52.4]} 11. axb4
{[%clk 0:03:04.2]} 11... Be6 {[%clk 0:02:33.6]} 12. d3 {[%clk 0:03:02.7]} 12...
Qd7 {[%clk 0:02:35.1]} 13. Nxd4 {[%clk 0:02:51.9]} 13... exd4 {[%clk 0:02:33.2]}
14. Nb5 {[%clk 0:02:52.5]} 14... Bh3 {[%clk 0:01:55.4]} 15. Nxd4 {[%clk
0:02:47.2]} 15... Bxg2 {[%clk 0:01:09.1]} 16. Kxg2 {[%clk 0:02:49.1]} 16... c6
{[%clk 0:00:49.6]} 17. h3 {[%clk 0:02:46.4]} 17... d5 {[%clk 0:00:50.7]} 18.
cxd5 {[%clk 0:02:44.4]} 18... Nxd5 {[%clk 0:00:33.9]} 19. exd5 {[%clk
0:02:45.3]} 19... Bxd4 {[%clk 0:00:30.4]} 20. dxc6 {[%clk 0:02:46.2]} 20...
Qxc6+ {[%clk 0:00:27.6]} 21. Qf3 {[%clk 0:02:47.1]} 21... Rfd8 {[%clk
0:00:08.8]} 22. Bg5 {[%clk 0:02:42.2]} 22... Qxf3+ {[%clk 0:00:09.9]} 23. Kxf3
{[%clk 0:02:43.1]} 23... f6 {[%clk 0:00:11.8]} 24. Bf4 {[%clk 0:02:42.3]} 24...
Be5 {[%clk 0:00:11.1]} 25. Rfd1 {[%clk 0:02:37.1]} 25... Bxf4 {[%clk 0:00:12.2]}
26. Kxf4 {[%clk 0:02:39]} 26... Ra4 {[%clk 0:00:12]} 27. d4 {[%clk 0:02:36.5]}
27... Rc8 {[%clk 0:00:12.5]} 28. Ke4 {[%clk 0:02:29.4]} 28... Kf7 {[%clk
0:00:10.6]} 29. b5 {[%clk 0:02:25.4]} 29... Ke6 {[%clk 0:00:08.5]} 30. Rdc1
{[%clk 0:02:20.9]} 30... f5+ {[%clk 0:00:08.7]} 31. Ke3 {[%clk 0:02:21.3]} 31...
Ra3+ {[%clk 0:00:07.2]} 32. Kf4 {[%clk 0:02:21.8]} 32... Rd8 {[%clk 0:00:05.3]}
33. Re1+ {[%clk 0:02:14.7]} 33... Kf6 {[%clk 0:00:06.8]} 34. Rbd1 {[%clk
0:02:14.7]} 34... Ra4 {[%clk 0:00:07.5]} 35. Ke3 {[%clk 0:01:56.3]} 35... Rb4
{[%clk 0:00:08.7]} 36. Rb1 {[%clk 0:01:27.3]} 36... Rdxd4 {[%clk 0:00:09]} 37.
f3 {[%clk 0:01:25]} 37... Rxb1 {[%clk 0:00:07.1]} 38. Rxb1 {[%clk 0:01:26.9]}
38... Rc4 {[%clk 0:00:08.5]} 39. Kd3 {[%clk 0:01:27.5]} 39... Ra4 {[%clk
0:00:10.1]} 40. b6 {[%clk 0:01:20.9]} 40... Ke5 {[%clk 0:00:09.7]} 41. Rb5+
{[%clk 0:01:20.3]} 41... Kd6 {[%clk 0:00:11]} 42. Ke3 {[%clk 0:01:21.1]} 42...
Kc6 {[%clk 0:00:11.6]} 43. Rb1 {[%clk 0:01:21.7]} 43... g5 {[%clk 0:00:11.5]}
44. f4 {[%clk 0:01:20.2]} 44... gxf4+ {[%clk 0:00:11.6]} 45. gxf4 {[%clk
0:01:22.1]} 45... Ra3+ {[%clk 0:00:13.2]} 46. Kd4 {[%clk 0:01:23.5]} 46... Rxh3
{[%clk 0:00:15.1]} 47. Ke5 {[%clk 0:01:25]} 47... Rh5 {[%clk 0:00:14.2]} 48. Kf6
{[%clk 0:01:23.3]} 48... Kc5 {[%clk 0:00:14.8]} 49. Rb2 {[%clk 0:01:22.5]} 49...
Kc6 {[%clk 0:00:16.1]} 50. Ke6 {[%clk 0:01:22.7]} 50... Kc5 {[%clk 0:00:16.3]}
51. Kd7 {[%clk 0:01:23.4]} 51... Rh4 {[%clk 0:00:13.8]} 52. Kc8 {[%clk
0:01:24.3]} 52... Kc6 {[%clk 0:00:13.2]} 53. Rb4 {[%clk 0:01:23.4]} 53... h5
{[%clk 0:00:13.8]} 54. Kd8 {[%clk 0:01:20.2]} 54... Rg4 {[%clk 0:00:14.8]} 55.
Ke7 {[%clk 0:01:21.5]} 55... h4 {[%clk 0:00:16.1]} 56. Ke6 {[%clk 0:01:22.1]}
56... h3 {[%clk 0:00:16.8]} 57. Rb1 {[%clk 0:01:16.4]} 57... Rxf4 {[%clk
0:00:18]} 58. Ke5 {[%clk 0:01:06.6]} 58... Rf2 {[%clk 0:00:18.9]} 59. Kf6 {[%clk
0:01:06.4]} 59... h2 {[%clk 0:00:19.6]} 60. Kg5 {[%clk 0:01:08]} 60... Rg2+
{[%clk 0:00:16.8]} 61. Kxf5 {[%clk 0:01:06.2]} 61... Rg1 {[%clk 0:00:18.7]} 0-1

[Event "*** Titled Tuesday Blitz"]
[Site "Chess.com"]
[Date "2018.08.07"]
[Round "9"]
[White "Indianlad"]
[Black "FairChess_on_YouTube"]
[Result "1/2-1/2"]
[WhiteElo "2751"]
[BlackElo "2948"]
[TimeControl "180+2"]
[EndTime "15:08:00 PDT"]
[Termination "Game drawn - insufficient material"]

1. e4 {[%clk 0:03:01.2]} 1... c5 {[%clk 0:03:00.7]} 2. Nf3 {[%clk 0:03:02.3]}
2... e6 {[%clk 0:03:02.1]} 3. d4 {[%clk 0:03:03.6]} 3... cxd4 {[%clk 0:03:04]}
4. Nxd4 {[%clk 0:03:05.3]} 4... a6 {[%clk 0:03:05.5]} 5. Nc3 {[%clk 0:03:05.7]}
5... Nc6 {[%clk 0:03:04.6]} 6. Nxc6 {[%clk 0:03:05.7]} 6... bxc6 {[%clk
0:03:05.4]} 7. Bd3 {[%clk 0:03:05.2]} 7... d5 {[%clk 0:03:06]} 8. O-O {[%clk
0:03:06.8]} 8... Nf6 {[%clk 0:03:06.9]} 9. Qe2 {[%clk 0:03:08.3]} 9... Be7
{[%clk 0:03:07.5]} 10. b3 {[%clk 0:03:09.6]} 10... O-O {[%clk 0:03:06.3]} 11.
Bb2 {[%clk 0:03:10.8]} 11... Bb7 {[%clk 0:03:07]} 12. Rad1 {[%clk 0:03:11.4]}
12... Qc7 {[%clk 0:03:06.7]} 13. e5 {[%clk 0:03:07.8]} 13... Nd7 {[%clk
0:03:06]} 14. Na4 {[%clk 0:03:09.2]} 14... c5 {[%clk 0:03:00.7]} 15. c4 {[%clk
0:03:10.2]} 15... d4 {[%clk 0:02:58]} 16. f4 {[%clk 0:03:11.5]} 16... f5 {[%clk
0:02:50.8]} 17. exf6 {[%clk 0:03:05.9]} 17... Rxf6 {[%clk 0:02:51.5]} 18. Be4
{[%clk 0:03:01.3]} 18... Raf8 {[%clk 0:02:45.2]} 19. Bxb7 {[%clk 0:03:00.3]}
19... Qxb7 {[%clk 0:02:47.1]} 20. Bc1 {[%clk 0:03:01.1]} 20... Bd6 {[%clk
0:02:38.9]} 21. Nb2 {[%clk 0:03:01.8]} 21... e5 {[%clk 0:02:18.5]} 22. fxe5
{[%clk 0:03:02.6]} 22... Nxe5 {[%clk 0:02:18.8]} 23. Rxf6 {[%clk 0:03:03.5]}
23... Rxf6 {[%clk 0:02:16.8]} 24. Rf1 {[%clk 0:03:03.2]} 24... Rxf1+ {[%clk
0:02:15.2]} 25. Kxf1 {[%clk 0:03:03.3]} 25... Qf7+ {[%clk 0:02:11]} 26. Ke1
{[%clk 0:02:53]} 26... Qf5 {[%clk 0:02:07.9]} 27. Kd1 {[%clk 0:02:47.1]} 27...
d3 {[%clk 0:02:01.4]} 28. Qe3 {[%clk 0:02:41.7]} 28... Qf1+ {[%clk 0:01:58.2]}
29. Qe1 {[%clk 0:02:35.6]} 29... Qxg2 {[%clk 0:01:58.3]} 30. Bd2 {[%clk
0:02:31.5]} 30... Qxh2 {[%clk 0:01:10]} 31. Qe4 {[%clk 0:02:30.2]} 31... Qh5+
{[%clk 0:00:48.8]} 32. Kc1 {[%clk 0:02:30.8]} 32... Qf3 {[%clk 0:00:49.3]} 33.
Qxf3 {[%clk 0:02:22.9]} 33... Nxf3 {[%clk 0:00:51.2]} 34. Nxd3 {[%clk
0:02:23.2]} 34... h5 {[%clk 0:00:50.4]} 35. Be3 {[%clk 0:02:21.2]} 35... g5
{[%clk 0:00:45.7]} 36. Bxc5 {[%clk 0:02:18]} 36... Bxc5 {[%clk 0:00:42]} 37.
Nxc5 {[%clk 0:02:19.9]} 37... h4 {[%clk 0:00:39.1]} 38. Ne4 {[%clk 0:02:20.4]}
38... g4 {[%clk 0:00:26.7]} 39. Nf6+ {[%clk 0:02:20.8]} 39... Kf7 {[%clk
0:00:27.9]} 40. Nxg4 {[%clk 0:02:22.7]} 40... Kg6 {[%clk 0:00:28.5]} 41. c5
{[%clk 0:02:21.2]} 41... Kf5 {[%clk 0:00:25.9]} 42. Nf2 {[%clk 0:02:19.2]} 42...
Ng5 {[%clk 0:00:23.3]} 43. Kd2 {[%clk 0:02:11.5]} 43... h3 {[%clk 0:00:20.7]}
44. Ke3 {[%clk 0:02:09.6]} 44... h2 {[%clk 0:00:19]} 45. b4 {[%clk 0:02:10.6]}
45... Ke6 {[%clk 0:00:17.8]} 46. a3 {[%clk 0:02:05.2]} 46... Kd5 {[%clk
0:00:17.9]} 47. Nh1 {[%clk 0:02:06.2]} 47... Kc4 {[%clk 0:00:10.5]} 48. Kf4
{[%clk 0:02:07.4]} 48... Nf7 {[%clk 0:00:10]} 49. Kf5 {[%clk 0:01:56.6]} 49...
Kd5 {[%clk 0:00:10.5]} 50. Kf4 {[%clk 0:01:51.1]} 50... Ne5 {[%clk 0:00:08.8]}
51. Kg3 {[%clk 0:01:48.7]} 51... Kc4 {[%clk 0:00:09.8]} 52. Kxh2 {[%clk
0:01:45]} 52... Kb3 {[%clk 0:00:11]} 53. Kg3 {[%clk 0:01:36.4]} 53... Kxa3
{[%clk 0:00:10.7]} 54. Kf4 {[%clk 0:01:38.3]} 54... Nc6 {[%clk 0:00:08.6]} 55.
Ke4 {[%clk 0:01:39]} 55... Kxb4 {[%clk 0:00:05.7]} 56. Kd5 {[%clk 0:01:40.9]}
56... Ne7+ {[%clk 0:00:06.3]} 57. Kd6 {[%clk 0:01:42]} 57... Nf5+ {[%clk
0:00:07.4]} 58. Ke5 {[%clk 0:01:41.4]} 58... Kxc5 {[%clk 0:00:08]} 59. Kxf5
{[%clk 0:01:42.4]} 59... Kd4 {[%clk 0:00:09.1]} 60. Ng3 {[%clk 0:01:42.5]} 60...
a5 {[%clk 0:00:07.7]} 61. Ne2+ {[%clk 0:01:43.3]} 61... Kd3 {[%clk 0:00:09]} 62.
Nc1+ {[%clk 0:01:44.6]} 62... Kc2 {[%clk 0:00:09.7]} 63. Ne2 {[%clk 0:01:41.4]}
63... Kd3 {[%clk 0:00:08.7]} 64. Nf4+ {[%clk 0:01:33.1]} 64... Kc4 {[%clk
0:00:05.8]} 65. Ke4 {[%clk 0:01:24.1]} 65... a4 {[%clk 0:00:06.8]} 66. Ne2
{[%clk 0:01:15.4]} 66... a3 {[%clk 0:00:07.9]} 67. Nc1 {[%clk 0:01:16.2]} 67...
Kc3 {[%clk 0:00:09.3]} 68. Na2+ {[%clk 0:01:16.4]} 68... Kb3 {[%clk 0:00:10.1]}
69. Nc1+ {[%clk 0:01:17.2]} 69... Kb2 {[%clk 0:00:10.8]} 70. Nd3+ {[%clk
0:01:17.8]} 70... Kc2 {[%clk 0:00:12.3]} 71. Kd4 {[%clk 0:01:17.3]} 71... a2
{[%clk 0:00:04.6]} 72. Nb4+ {[%clk 0:01:18]} 72... Kd1 {[%clk 0:00:06.2]} 73.
Nxa2 {[%clk 0:01:16.6]} 1/2-1/2